[Event "Asian Academies Hybrid Chess-ch 2021"]
[Site "Tornelo"]
[Date "2021.11.21"]
[Round "5.1"]
[White "Newansa, M Esandi"]
[Black "Shadat, Kibria Ayaan"]
[Result "1/2-1/2"]
[ECO "D00"]
[WhiteElo "1121"]
[BlackElo "1623"]
[Annotator "NA RC"]
[PlyCount "82"]
[EventDate "2021.11.21"]
[EventCountry "NET"]
[SourceTitle "playchess.com"]
[Source "ChessBase"]
[SourceQuality "1"]
[TimeControl "3600+30"]

1. d4 {[%emt 0:00:30]} d5 {[%emt 0:00:40]} 2. Bf4 {[%emt 0:00:12]} Nf6 {[%emt 0:00:05]} 3. e3 {[%emt 0:00:11]} e6 {[%emt 0:00:03]} 4. c3 {[%emt 0:00:16]} Bd6 {[%emt 0:01:30]} 5. Bg3 {[%emt 0:00:21]} c5 {[%emt 0:04:26]} 6. Nd2 {[%emt 0:00:55]} Nc6 {[%emt 0:01:31]} 7. Bb5 {[%emt 0:00:46]} cxd4 {[%emt 0:01:30]} 8. cxd4 {[%emt 0:00:15]} O-O {[%emt 0:00:14]} 9. Rc1 {[%emt 0:01:09]} Bxg3 {[%emt 0:01:48]} 10. hxg3 {[%emt 0:00:17]} Bd7 {[%emt 0:01:12]} 11. Nb3 {[%emt 0:01:59]} Rc8 {[%emt 0:07:17]} 12. Bd3 {[%emt 0:03:49]} h6 {[%emt 0:05:46]} 13. Ne2 {[%emt 0:01:04]} Nb4 {[%emt 0:02:44]} 14. Nc3 {[%emt 0:01:25]} Nxd3+ {[%emt 0:02:00]} 15. Qxd3 {[%emt 0:00:08]} Bc6 {[%emt 0:01:03]} 16. O-O {[%emt 0:00:18]} Re8 {[%emt 0:03:52]} 17. Rfd1 {[%emt 0:03:26]} a6 {[%emt 0:00:36]} 18. Nc5 {[%emt 0:03:39]} Qd6 {[%emt 0:04:12]} 19. b4 {[%emt 0:01:21]} e5 {[%emt 0:10:42]} 20. dxe5 {[%emt 0:00:54]} Qxe5 {[%emt 0:02:08]} 21. a4 {[%emt 0:00:42]} Ne4 {[%emt 0:12:37]} 22. N3xe4 {[%emt 0:02:05]} dxe4 {[%emt 0:00:03]} 23. Qb3 {[%emt 0:00:35]} Red8 {[%emt 0:03:03]} 24. Qa3 {[%emt 0:02:59]} Rd5 {[%emt 0:02:17]} 25. Nb3 {[%emt 0:05:59]} Rd3 {[%emt 0:00:50]} 26. Rxd3 {[%emt 0:00:42]} exd3 {[%emt 0:00:02]} 27. Nd4 {[%emt 0:00:50]} Qe4 {[%emt 0:01:18]} 28. Nxc6 {[%emt 0:00:32]} Rxc6 {[%emt 0:00:12]} 29. Rd1 {[%emt 0:00:09]} Rd6 {[%emt 0:00:33]} 30. Qc3 {[%emt 0:00:23]} b5 {[%emt 0:00:43]} 31. axb5 {[%emt 0:00:21]} axb5 {[%emt 0:00:03]} 32. Qc8+ {[%emt 0:01:26]} Kh7 {[%emt 0:00:02]} 33. Qc5 {[%emt 0:00:23]} Rd5 {[%emt 0:00:49]} 34. Qc3 {[%emt 0:00:13]} Qc4 {[%emt 0:00:30]} 35. Qd2 {[%emt 0:00:09]} f5 {[%emt 0:00:59]} 36. Rc1 {[%emt 0:00:26]} Qg4 {[%emt 0:00:37]} 37. Rd1 {[%emt 0:00:32]} Rd6 {[%emt 0:00:30]} 38. Kf1 {[%emt 0:00:38]} Qh5 {[%emt 0:00:05]} 39. Kg1 {[%emt 0:00:47]} Qg4 {[%emt 0:00:27]} 40. Kf1 {[%emt 0:00:21]} Qh5 {[%emt 0:00:03]} 41. Kg1 {[%emt 0:00:12]} Qg4 {[%emt 0:00:29]} 1/2-1/2

[Event "Asian Academies Hybrid Chess-ch 2021"]
[Site "Tornelo"]
[Date "2021.11.21"]
[Round "5.2"]
[White "Babaei, Amir Hossein"]
[Black "Galiakbarov, Aldiyar"]
[Result "1-0"]
[ECO "D06"]
[WhiteElo "1286"]
[BlackElo "1141"]
[Annotator "NA RC"]
[PlyCount "69"]
[EventDate "2021.11.21"]
[EventCountry "NET"]
[SourceTitle "playchess.com"]
[Source "ChessBase"]
[SourceQuality "1"]
[TimeControl "3600+30"]

1. d4 {[%emt 0:00:30]} d5 {[%emt 0:00:35]} 2. Nf3 {[%emt 0:00:08]} Nf6 {[%emt 0:00:07]} 3. e3 {[%emt 0:00:49]} Bf5 {[%emt 0:00:08]} 4. c4 {[%emt 0:00:49]} e6 {[%emt 0:00:29]} 5. Nc3 {[%emt 0:01:29]} Be7 {[%emt 0:01:06]} 6. Ne5 {[%emt 0:02:50]} c6 {[%emt 0:01:13]} 7. cxd5 {[%emt 0:02:58]} exd5 {[%emt 0:01:07]} 8. Bd3 {[%emt 0:00:46]} Bxd3 {[%emt 0:00:07]} 9. Qxd3 {[%emt 0:00:14]} Nbd7 {[%emt 0:00:30]} 10. f4 {[%emt 0:00:41]} Qc7 {[%emt 0:01:30]} 11. O-O {[%emt 0:03:44]} a5 {[%emt 0:24:54]} 12. a3 {[%emt 0:05:31]} O-O {[%emt 0:00:34]} 13. Qc2 {[%emt 0:01:48]} Rfc8 {[%emt 0:00:36]} 14. Bd2 {[%emt 0:10:49]} b5 {[%emt 0:02:10]} 15. Rfe1 {[%emt 0:01:49]} Qb6 {[%emt 0:00:24]} 16. Qf5 {[%emt 0:02:17]} Qb7 {[%emt 0:00:25]} 17. Nxd7 {[%emt 0:01:50]} Nxd7 {[%emt 0:00:25]} 18. e4 {[%emt 0:01:09]} dxe4 {[%emt 0:00:23]} 19. Nxe4 {[%emt 0:00:49]} g6 {[%emt 0:01:34]} 20. Qh3 {[%emt 0:01:26]} Nf6 {[%emt 0:01:13]} 21. Ng5 {[%emt 0:01:47]} Rd8 {[%emt 0:01:36]} 22. Nxf7 {[%emt 0:02:36]} Kxf7 {[%emt 0:00:51]} 23. Qe6+ {[%emt 0:00:38]} Kf8 {[%emt 0:00:13]} 24. f5 {[%emt 0:01:08]} Qd7 {[%emt 0:00:36]} 25. Bh6+ {[%emt 0:00:17]} Ke8 {[%emt 0:00:08]} 26. Qxf6 {[%emt 0:00:42]} Qd6 {[%emt 0:04:14]} 27. Re6 {[%emt 0:00:49]} Qxd4+ {[%emt 0:01:20]} 28. Qxd4 {[%emt 0:00:10]} Rxd4 {[%emt 0:00:03]} 29. f6 {[%emt 0:00:24]} Kf7 {[%emt 0:00:16]} 30. Rxe7+ {[%emt 0:00:36]} Kxf6 {[%emt 0:00:03]} 31. Rae1 {[%emt 0:00:38]} Rd5 {[%emt 0:01:21]} 32. R1e6+ {[%emt 0:00:55]} Kf5 {[%emt 0:00:05]} 33. Re4 {[%emt 0:00:42]} g5 {[%emt 0:00:51]} 34. g4+ {[%emt 0:00:21]} Kg6 {[%emt 0:00:34]} 35. R4e6# {[%emt 0:00:08]} 1-0

[Event "Asian Academies Hybrid Chess-ch 2021"]
[Site "Tornelo"]
[Date "2021.11.21"]
[Round "5.3"]
[White "Mohammadi, Mohamad Amin"]
[Black "Kazi Afsan Rawnak, Anan"]
[Result "1-0"]
[ECO "B90"]
[WhiteElo "1855"]
[BlackElo "1410"]
[Annotator "NA"]
[PlyCount "71"]
[EventDate "2021.11.21"]
[EventCountry "NET"]
[SourceTitle "playchess.com"]
[Source "ChessBase"]
[SourceQuality "1"]
[TimeControl "3600+30"]

{[%evp 8,62,31,18,30,1,2,8,6,4,256,281,276,266,403,445,518,450,768,530,516,385,372,379,810,306,309,276,374,285,260,277,315,325,337,280,379,412,412,355,437,489,493,522,534,542,868,976,964,929,965,933,958,1000,1012,1004,1086]} 1. e4 {[%emt 0:00:30]} c5 {[%emt 0:00:35]} 2. Nf3 {[%emt 0:00:04]} d6 {[%emt 0:00:20]} 3. d4 {[%emt 0:00:03]} cxd4 {[%emt 0:00:29]} 4. Nxd4 {[%emt 0:00:03]} Nf6 {[%emt 0:00:28]} 5. Nc3 {[%emt 0:00:04]} a6 {[%emt 0:00:23]} 6. Rg1 {[%emt 0:04:14]} e5 {[%emt 0:05:29]} 7. Nb3 {[%emt 0:00:12]} Be6 {[%emt 0:01:26]} 8. g4 {[%emt 0:00:10]} Nxg4 $2 {[%emt 0:05:56]} (8... h6 $11) 9. Rxg4 {[%emt 0:00:08]} Bxg4 {[%emt 0:00:04]} 10. Qxg4 {[%emt 0:00:08]} Qd7 {[%emt 0:00:23]} (10... Nd7 $142 11. Bg5 h5) 11. Qg3 {[%emt 0:01:10]} Nc6 {[%emt 0:06:47]} 12. Nd5 {[%emt 0:00:09]} Rb8 {[%emt 0:05:52]} (12... Ne7 $142 13. Nb6 {[%mdl 64] Double Attack} Qd8) 13. Be3 {[%emt 0:14:14]} Ne7 {[%emt 0:07:33]} 14. O-O-O {[%emt 0:05:32]} Nxd5 {[%emt 0:01:58]} 15. Rxd5 {[%emt 0:01:32]} Qa4 $2 {[%emt 0:02:55] [#]} (15... f6 16. f4 Qc7 17. fxe5 Rc8) 16. Qg4 $2 {[%emt 0:01:44]} (16. Rxe5+ $1 {[%mdl 512]} dxe5 17. Qxe5+ {[%mdl 64] Double Attack} Be7 18. Qxb8+ {[%mdl 64] Double Attack} Bd8 19. Qe5+ {[%mdl 64] Double Attack} Be7 20. Qb8+ Bd8 21. Qe5+ {[%mdl 64] Double Attack} Be7 22. Bc5) 16... g6 {[%emt 0:02:53]} 17. f3 {[%emt 0:14:43]} f5 {[%emt 0:03:19]} 18. exf5 {[%emt 0:03:36]} Qxg4 {[%emt 0:00:07]} 19. fxg4 {[%emt 0:00:03]} gxf5 {[%emt 0:00:18]} 20. gxf5 {[%emt 0:00:03]} Rg8 {[%emt 0:01:48]} 21. Na5 {[%emt 0:01:15]} Kd7 {[%emt 0:01:03]} 22. Nc4 {[%emt 0:00:48]} Kc6 {[%emt 0:00:42]} 23. Rd2 {[%emt 0:01:51]} Rg4 {[%emt 0:04:30]} 24. Bg2+ {[%emt 0:01:59]} e4 {[%emt 0:04:11]} 25. h3 {[%emt 0:01:08]} Rh4 {[%emt 0:03:33]} 26. Bf2 {[%emt 0:02:02]} Bh6 {[%emt 0:05:36]} 27. Bxh4 {[%emt 0:00:24]} Bxd2+ {[%emt 0:00:02]} 28. Nxd2 {[%emt 0:01:54]} Rg8 {[%emt 0:02:39]} 29. Bxe4+ {[%emt 0:01:03]} d5 {[%emt 0:00:31]} 30. Bd3 {[%emt 0:00:46]} Rg1+ {[%emt 0:00:37]} 31. Bf1 {[%emt 0:00:15]} Kd6 $18 {[%emt 0:00:20]} 32. Kd1 {[%emt 0:00:04]} Ke5 {[%emt 0:00:20]} 33. Nf3+ {[%emt 0:00:04]} Kxf5 {[%emt 0:00:29]} 34. Nxg1 {[%emt 0:00:04]} d4 {[%emt 0:00:12]} 35. Bd3+ {[%emt 0:00:03]} Kf4 {[%emt 0:00:03]} 36. Bxh7 {[%emt 0:00:05]} 1-0

[Event "Asian Academies Hybrid Chess-ch 2021"]
[Site "Tornelo"]
[Date "2021.11.21"]
[Round "5.3"]
[White "Warsia, Khusbu"]
[Black "Mohammadi, Maryam"]
[Result "0-1"]
[ECO "C54"]
[WhiteElo "1505"]
[BlackElo "1163"]
[Annotator "NA RC"]
[PlyCount "66"]
[EventDate "2021.11.21"]
[EventCountry "NET"]
[SourceTitle "playchess.com"]
[Source "ChessBase"]
[SourceQuality "1"]
[TimeControl "3600+30"]

1. e4 {[%emt 0:00:30]} e5 {[%emt 0:01:22]} 2. Nf3 {[%emt 0:00:04]} Nc6 {[%emt 0:00:51]} 3. Bc4 {[%emt 0:00:03]} Bc5 {[%emt 0:00:46]} 4. c3 {[%emt 0:00:03]} Nf6 {[%emt 0:00:42]} 5. d4 {[%emt 0:00:06]} exd4 {[%emt 0:00:40]} 6. e5 {[%emt 0:00:02]} d5 {[%emt 0:01:28]} 7. Bb5 {[%emt 0:00:05]} Ne4 {[%emt 0:01:25]} 8. cxd4 {[%emt 0:00:06]} Bb4+ {[%emt 0:00:57]} 9. Bd2 {[%emt 0:00:53]} Be7 {[%emt 0:00:44]} 10. Qc2 {[%emt 0:00:27]} Bd7 {[%emt 0:00:43]} 11. Nc3 {[%emt 0:00:38]} Nb4 {[%emt 0:00:41]} 12. Bxd7+ {[%emt 0:00:47]} Qxd7 {[%emt 0:00:44]} 13. Qb1 {[%emt 0:00:24]} Nxd2 {[%emt 0:00:46]} 14. Nxd2 {[%emt 0:00:10]} c5 {[%emt 0:00:52]} 15. dxc5 {[%emt 0:00:36]} d4 {[%emt 0:00:56]} 16. Nce4 {[%emt 0:01:02]} d3 {[%emt 0:01:01]} 17. O-O {[%emt 0:02:42]} Nc2 {[%emt 0:00:39]} 18. Nd6+ {[%emt 0:00:09]} Bxd6 {[%emt 0:00:55]} 19. exd6 {[%emt 0:00:24]} O-O {[%emt 0:00:54]} 20. b4 {[%emt 0:00:07]} a5 {[%emt 0:01:22]} 21. b5 {[%emt 0:00:27]} Rac8 {[%emt 0:00:45]} 22. Ne4 {[%emt 0:02:27]} Qe6 {[%emt 0:01:56]} 23. f3 {[%emt 0:02:15]} f5 {[%emt 0:00:52]} 24. d7 {[%emt 0:00:45]} Qxd7 {[%emt 0:01:02]} 25. Qb3+ {[%emt 0:00:07]} Kh8 {[%emt 0:00:55]} 26. Rad1 {[%emt 0:00:17]} fxe4 {[%emt 0:01:33]} 27. Qxc2 {[%emt 0:00:46]} Qd4+ {[%emt 0:01:02]} 28. Kh1 {[%emt 0:02:03]} Rfd8 {[%emt 0:00:58]} 29. Qb3 {[%emt 0:00:44]} e3 {[%emt 0:00:47]} 30. Rfe1 {[%emt 0:00:21]} Rxc5 {[%emt 0:00:46]} 31. a4 {[%emt 0:00:23]} Rc3 {[%emt 0:00:48]} 32. Qb2 {[%emt 0:00:13]} d2 {[%emt 0:00:44]} 33. Re2 {[%emt 0:00:34]} Qd3 {[%emt 0:00:39]} 0-1

[Event "Asian Academies Hybrid Chess-ch 2021"]
[Site "Tornelo"]
[Date "2021.11.21"]
[Round "5.4"]
[White "Husam Al-Dain Abdulhakim Nashe"]
[Black "Abdolahi, Amir Taha"]
[Result "1-0"]
[ECO "C14"]
[WhiteElo "1342"]
[BlackElo "1243"]
[Annotator "NA RC"]
[PlyCount "67"]
[EventDate "2021.11.21"]
[EventCountry "NET"]
[SourceTitle "playchess.com"]
[Source "ChessBase"]
[SourceQuality "1"]
[TimeControl "3600+30"]

1. e4 {[%emt 0:01:34]} e6 {[%emt 0:02:27]} 2. d4 {[%emt 0:01:37]} d5 {[%emt 0:00:05]} 3. Nc3 {[%emt 0:00:40]} Nf6 {[%emt 0:02:17]} 4. Bg5 {[%emt 0:01:54]} Be7 {[%emt 0:03:43]} 5. e5 {[%emt 0:01:18]} Nfd7 {[%emt 0:00:10]} 6. h4 {[%emt 0:00:18]} Bxg5 {[%emt 0:08:14]} 7. hxg5 {[%emt 0:00:04]} Qxg5 {[%emt 0:00:26]} 8. Nh3 {[%emt 0:00:07]} Qd8 {[%emt 0:01:01]} 9. Qg4 {[%emt 0:01:03]} g6 {[%emt 0:02:06]} 10. Bd3 {[%emt 0:02:38]} Qe7 {[%emt 0:10:07]} 11. Nf4 {[%emt 0:02:44]} Nf8 {[%emt 0:01:47]} 12. Nfxd5 {[%emt 0:00:45]} exd5 {[%emt 0:00:55]} 13. Qxc8+ {[%emt 0:00:08]} Qd8 {[%emt 0:00:08]} 14. Qxb7 {[%emt 0:00:05]} Nbd7 {[%emt 0:00:23]} 15. Nxd5 {[%emt 0:00:33]} Ne6 {[%emt 0:00:11]} 16. Bb5 {[%emt 0:01:25]} Rb8 {[%emt 0:13:08]} 17. Qc6 {[%emt 0:12:40]} Nxd4 {[%emt 0:04:17]} 18. Nxc7+ {[%emt 0:02:15]} Kf8 {[%emt 0:01:29]} 19. Qd6+ {[%emt 0:00:57]} Kg8 {[%emt 0:01:51]} 20. Qxd4 {[%emt 0:01:23]} Qxc7 {[%emt 0:00:50]} 21. Bxd7 {[%emt 0:00:13]} Rb6 {[%emt 0:03:46]} 22. O-O {[%emt 0:00:54]} h6 {[%emt 0:00:53]} 23. Rfe1 {[%emt 0:01:52]} Kh7 {[%emt 0:00:51]} 24. e6 {[%emt 0:01:44]} fxe6 {[%emt 0:00:13]} 25. Bxe6 {[%emt 0:00:11]} Rd6 {[%emt 0:00:07]} 26. Qf4 {[%emt 0:01:13]} Rhd8 {[%emt 0:01:27]} 27. Rad1 {[%emt 0:01:06]} h5 {[%emt 0:00:51]} 28. Rxd6 {[%emt 0:00:20]} Rxd6 {[%emt 0:01:15]} 29. Bb3 {[%emt 0:01:04]} a6 {[%emt 0:01:44]} 30. Qf8 {[%emt 0:00:15]} Rd7 {[%emt 0:00:37]} 31. Bg8+ {[%emt 0:00:18]} Kh8 {[%emt 0:00:11]} 32. Bf7+ {[%emt 0:00:04]} Kh7 {[%emt 0:00:07]} 33. Qg8+ {[%emt 0:00:04]} Kh6 {[%emt 0:00:06]} 34. Qxg6# {[%emt 0:00:03]} 1-0

[Event "Asian Academies Hybrid Chess-ch 2021"]
[Site "Tornelo"]
[Date "2021.11.21"]
[Round "5.4"]
[White "Ajami, Kiyana"]
[Black "Khaled waleed Abdullah"]
[Result "0-1"]
[ECO "D05"]
[WhiteElo "1170"]
[BlackElo "1568"]
[Annotator "NA RC"]
[PlyCount "82"]
[EventDate "2021.11.21"]
[EventCountry "NET"]
[SourceTitle "playchess.com"]
[Source "ChessBase"]
[SourceQuality "1"]
[TimeControl "3600+30"]

1. d4 {[%emt 0:03:41]} Nf6 {[%emt 0:00:42]} 2. Nf3 {[%emt 0:00:18]} e6 {[%emt 0:00:05]} 3. e3 {[%emt 0:00:35]} d5 {[%emt 0:00:15]} 4. Bd3 {[%emt 0:00:05]} Be7 {[%emt 0:00:22]} 5. O-O {[%emt 0:01:48]} O-O {[%emt 0:00:05]} 6. Ne5 {[%emt 0:00:08]} c5 {[%emt 0:00:19]} 7. c3 {[%emt 0:00:03]} Nc6 {[%emt 0:00:16]} 8. f4 {[%emt 0:00:19]} Qc7 {[%emt 0:04:38]} 9. Nd2 {[%emt 0:00:39]} b6 {[%emt 0:01:52]} 10. a3 {[%emt 0:01:08]} Bb7 {[%emt 0:01:27]} 11. Qe2 {[%emt 0:05:29]} Rac8 {[%emt 0:04:46]} 12. e4 {[%emt 0:00:36]} cxd4 {[%emt 0:03:03]} 13. exd5 {[%emt 0:03:01]} Nxd5 {[%emt 0:08:18]} 14. cxd4 {[%emt 0:02:32]} Nxd4 {[%emt 0:02:23]} 15. Qd1 {[%emt 0:04:49]} Bc5 {[%emt 0:07:40]} 16. Kh1 {[%emt 0:00:39]} Ne3 {[%emt 0:01:28]} 17. Bxh7+ {[%emt 0:04:35]} Kxh7 {[%emt 0:00:07]} 18. Qh5+ {[%emt 0:00:05]} Kg8 {[%emt 0:00:02]} 19. Rf2 {[%emt 0:02:23]} Bd6 {[%emt 0:03:23]} 20. Ndf3 {[%emt 0:02:23]} Nxf3 {[%emt 0:06:54]} 21. Nxf3 {[%emt 0:01:09]} Bxf3 {[%emt 0:00:20]} 22. Qxf3 {[%emt 0:03:28]} Qxc1+ {[%emt 0:00:16]} 23. Rxc1 {[%emt 0:00:05]} Rxc1+ {[%emt 0:00:03]} 24. Rf1 {[%emt 0:00:02]} Rxf1+ {[%emt 0:00:03]} 25. Qxf1 {[%emt 0:00:02]} Nxf1 {[%emt 0:00:02]} 26. Kg1 {[%emt 0:00:01]} Ne3 {[%emt 0:00:03]} 27. Kf2 {[%emt 0:00:03]} Nd1+ {[%emt 0:00:02]} 28. Ke2 {[%emt 0:00:05]} Nxb2 {[%emt 0:00:03]} 29. f5 {[%emt 0:00:04]} exf5 {[%emt 0:00:02]} 30. Kf3 {[%emt 0:00:06]} Bxa3 {[%emt 0:00:03]} 31. Kg3 {[%emt 0:00:02]} Bd6+ {[%emt 0:00:03]} 32. Kh3 {[%emt 0:00:04]} a5 {[%emt 0:00:02]} 33. g3 {[%emt 0:00:11]} a4 {[%emt 0:00:06]} 34. Kh4 {[%emt 0:00:02]} a3 {[%emt 0:00:02]} 35. h3 {[%emt 0:00:03]} a2 {[%emt 0:00:02]} 36. g4 {[%emt 0:00:04]} a1=Q {[%emt 0:00:07]} 37. Kh5 {[%emt 0:00:05]} g6+ {[%emt 0:00:04]} 38. Kg5 {[%emt 0:00:05]} Qc1+ {[%emt 0:00:32]} 39. Kf6 {[%emt 0:00:15]} Qc3+ {[%emt 0:00:06]} 40. Kg5 {[%emt 0:00:09]} Qe3+ {[%emt 0:00:03]} 41. Kh4 {[%emt 0:00:07]} Qh6# {[%emt 0:00:03]} 0-1